bitfinex/quotes_ETHUSD_20250620
["timestamp","ask_amount","ask_price","bid_price","bid_amount"]
[1750440032186,0.495,2461.4,2459.7,4.8435302]
[1750440032331,30.8051,2461.7,2459.7,4.8435302]
[1750440032332,0.5541,2461.2,2460.0,0.5954813]
[1750440032534,30.60488995,2461.2,2460.3,4.06450998]
[1750440032747,30.60488995,2461.2,2461.1,4.56322376]
[1750440032748,0.495,2461.2,2461.1,4.56322376]
[1750440032974,0.495,2461.5,2461.4,4.06272852]
[1750440033175,0.05079424,2461.6,2461.1,4.62522376]
[1750440033176,0.495,2461.3,2461.1,0.5]
[1750440033376,0.495,2461.3,2459.6,0.7968]
[1750440033377,0.495,2460.2,2459.6,0.7968]
[1750440033672,0.495,2460.1,2460.0,5.14852195]
[1750440033977,0.495,2460.1,2460.0,0.5334813]
[1750440034191,30.495,2460.1,2460.0,0.5334813]
[1750440034335,31.3492,2460.1,2460.0,0.5334813]
[1750440034536,44.48722633,2460.1,2460.0,0.5334813]
[1750440034763,55.14622633,2460.1,2460.0,0.5334813]
[1750440034966,0.495,2459.0,2458.8,0.005]
[1750440035195,0.495,2459.0,2458.9,4.06685916]
[1750440035477,0.05082716,2459.6,2459.5,4.06586704]
[1750440035641,0.05082673,2459.8,2459.7,4.06553644]
[1750440035833,0.05082673,2459.8,2458.9,0.83926233]
[1750440035834,0.495,2459.7,2459.0,0.062]
[1750440036035,0.495,2459.1,2459.0,4.06666534]
[1750440036236,0.495,2459.1,2458.9,0.83926233]
[1750440036488,0.495,2459.1,2459.0,4.06669377]
[1750440036679,0.495,2459.1,2459.0,4.12869377]
[1750440037240,0.495,2459.1,2459.0,4.06669377]
[1750440037439,0.495,2459.1,2459.0,4.12869377]
[1750440037859,0.495,2459.5,2459.2,0.062]
[1750440038062,0.495,2459.8,2459.7,4.06553644]
[1750440038259,0.495,2459.4,2459.3,4.12299769]
[1750440038474,0.495,2459.6,2459.5,4.06586704]
[1750440038801,0.495,2458.9,2458.8,0.0618]
[1750440038944,0.495,2458.9,2458.8,0.005]
[1750440039148,0.495,2459.1,2458.8,4.07202456]
[1750440039372,0.495,2459.1,2459.0,4.12349377]
[1750440039647,0.7629,2459.5,2458.8,4.56139374]
[1750440039648,0.495,2458.9,2458.8,4.56139374]
[1750440039878,23.86785852,2460.0,2458.8,4.56139374]
[1750440039879,0.495,2459.3,2459.2,4.12316304]
[1750440040079,0.495,2459.3,2459.2,4.06636304]
[1750440040384,0.495,2459.3,2459.2,4.12316304]
[1750440040560,0.495,2459.3,2459.2,4.9421302]
[1750440040951,0.495,2459.3,2459.2,4.06636304]
[1750440041559,13.93192633,2460.0,2458.8,4.12882456]
[1750440041560,0.495,2458.9,2458.8,4.12882456]
[1750440042149,0.495,2458.9,2458.8,0.005]
[1750440042349,0.80660412,2458.9,2458.8,0.005]
[1750440042582,30.80660412,2458.9,2458.8,0.005]
[1750440042784,43.94463045,2458.9,2458.8,0.005]
[1750440042971,48.07058961,2458.9,2458.8,0.005]
[1750440043175,62.62048961,2458.9,2458.8,0.005]
[1750440043348,62.62048961,2458.9,2458.2,0.05774986]
[1750440043349,34.51285176,2458.3,2458.2,0.05774986]
[1750440043551,13.58302633,2458.3,2458.2,0.05774986]
[1750440043854,54.77906914,2458.3,2456.9,0.7736]
[1750440044061,54.77906914,2458.3,2456.0,0.005]
[1750440044062,0.445,2456.3,2456.0,0.005]
[1750440044259,0.7756,2457.4,2456.0,0.005]
[1750440044260,0.445,2456.5,2456.4,4.0709982]
[1750440044462,0.445,2457.2,2456.6,0.0568]
[1750440044694,0.7756,2457.4,2457.3,4.06950718]
[1750440044695,1.2206,2457.4,2457.3,4.06950718]
[1750440044900,1.2206,2457.4,2456.6,4.15385906]
[1750440044901,0.445,2457.1,2456.6,0.0833019]
[1750440045098,0.445,2457.1,2456.2,0.8219]
[1750440045099,0.445,2456.9,2455.9,0.04]
[1750440045261,0.445,2455.1,2454.2,1.07588756]
[1750440045605,31.2871,2455.1,2454.2,0.25398756]
[1750440045934,0.0591,2450.7,2448.0,0.005]
[1750440046197,0.0591,2450.7,2445.5,15.94720993]
[1750440046198,0.0591,2450.7,2444.3,2.02954506]
[1750440046199,0.5,2446.2,2444.3,2.02954506]
[1750440046409,4.8689293,2448.0,2443.4,10.0]
[1750440046410,1.9778,2445.9,2443.4,2.04475449]
[1750440046700,0.7998,2446.5,2443.5,0.70509054]
[1750440046701,0.0033,2446.2,2443.5,0.70509054]
[1750440046902,0.8589,2446.5,2443.5,0.36317731]
[1750440046903,30.0,2445.8,2443.5,0.36317731]
[1750440047201,30.0,2445.8,2443.5,0.22387686]
[1750440047202,31.4778,2445.3,2443.5,0.22387686]
[1750440047407,31.4778,2445.3,2443.3,0.607605]
[1750440047408,1.4778,2444.1,2443.3,0.097605]
[1750440047563,1.4778,2444.9,2444.0,13.34989932]
[1750440047765,1.4778,2444.0,2443.4,0.047605]
[1750440047964,1.4778,2444.0,2442.1,0.0008]
[1750440047965,0.0617,2443.8,2442.1,0.0008]
[1750440048187,0.0617,2443.8,2437.4,5.506]
[1750440048188,1.24994817,2441.5,2438.6,9.7698785]
[1750440048469,1.24994817,2441.5,2433.8,7.84]
[1750440048470,1.24994817,2442.1,2438.8,25.700502]
[1750440048662,1.24994817,2441.4,2439.1,40.0]
[1750440048871,1.24994817,2441.4,2438.2,2.01058015]
[1750440048872,1.29994817,2441.4,2439.2,10.589]
[1750440049165,1.34994817,2442.3,2439.4,0.7693]
[1750440049396,1.34994817,2442.2,2440.5,12.38908592]
[1750440049598,1.34994817,2442.2,2439.4,0.7193]
[1750440049599,0.0617,2444.1,2439.4,0.7193]
[1750440049600,0.75334817,2442.4,2440.6,1.18890859]
[1750440049871,0.75334817,2441.7,2439.5,12.39377531]
[1750440050064,0.75334817,2442.0,2439.6,0.0568]
[1750440050374,0.0617,2442.8,2439.3,10.539]
[1750440050375,0.75334817,2442.1,2440.4,12.39297892]
[1750440050575,0.5,2442.4,2438.7,10.609]
[1750440050791,0.5,2442.4,2437.8,2.09625465]
[1750440050792,0.75334817,2440.0,2438.9,0.08]
[1750440051005,0.5,2439.8,2437.4,0.0074693]
[1750440051215,0.5518,2441.0,2437.5,0.0568]
[1750440051216,30.753349,2440.0,2437.5,0.0568]
[1750440051427,29.95,2440.9,2438.2,0.0568]
[1750440051719,0.45,2440.5,2436.6,10.0]
[1750440051861,0.45,2440.5,2434.6,16.0]
[1750440051862,10.0,2438.1,2434.2,0.26892801]
[1750440052062,4.10795711,2434.3,2434.2,0.03887901]
[1750440052262,0.45,2434.3,2430.7,0.0568]
[1750440052506,15.016,2436.2,2431.7,0.43169973]
[1750440052507,0.0604449,2432.7,2431.7,0.43169973]
[1750440052677,0.45187507,2432.6,2432.1,0.46845343]
[1750440052866,29.95,2432.4,2432.1,0.45368847]
[1750440053071,29.95,2432.4,2428.2,10.634]
[1750440053072,0.45187507,2432.3,2427.8,1.55355805]
[1750440053374,0.45187507,2432.3,2427.7,2.47826317]
[1750440053375,0.45187507,2432.3,2431.4,1.231709]
[1750440053376,30.0,2432.1,2431.4,1.231709]
[1750440053701,29.95,2435.1,2432.8,0.4057]
[1750440053902,0.5,2434.1,2428.1,2.08884735]
[1750440054106,4.61032101,2432.9,2432.8,0.1343]
[1750440054269,4.61032101,2432.9,2428.2,1.53699201]
[1750440054270,40.0,2432.6,2429.5,0.0568]
[1750440054602,40.0,2432.6,2428.3,8.942173]
[1750440054603,30.0,2431.1,2429.6,0.34358849]
[1750440054766,30.0,2433.4,2431.1,0.0568]
[1750440054966,2.63420358,2433.4,2431.2,0.34336237]
[1750440055163,40.0,2433.0,2431.6,12.39297892]
[1750440055367,30.0,2433.0,2431.7,0.34329177]
[1750440055568,30.0,2433.6,2431.7,0.34329177]
[1750440055799,2.00643135,2436.0,2431.7,0.34329177]
[1750440055800,30.0,2433.7,2432.8,12.44977892]
[1750440055999,30.0,2433.7,2431.7,0.34329177]
[1750440056000,28.65,2435.1,2432.9,1.58810034]
[1750440056214,4.10363238,2436.9,2432.9,1.58810034]
[1750440056215,1.235264,2434.3,2432.9,0.34312245]
[1750440056413,0.7567,2435.6,2433.0,0.0568]
[1750440056622,0.7567,2435.6,2432.0,10.0]
[1750440056623,0.5,2435.4,2433.1,0.34309424]
[1750440056827,40.0,2435.0,2433.1,0.34309424]
[1750440057009,1.991568,2435.6,2433.2,0.0568]
[1750440057318,2.04272671,2438.4,2433.1,0.34309424]
[1750440057319,30.0,2434.7,2433.1,0.34309424]
[1750440057483,0.33701288,2434.6,2434.1,0.0568]
[1750440057685,0.51,2435.8,2434.2,0.0568]
[1750440057884,0.5,2436.8,2435.7,10.0568]
[1750440058099,30.0,2437.4,2434.1,0.0568]
[1750440058300,0.5,2436.7,2435.2,0.0568]
[1750440058623,0.22731084,2436.6,2435.6,0.0568]
[1750440058828,0.5,2437.4,2436.5,0.0568]
[1750440059023,0.5,2437.4,2436.4,10.0]
[1750440059024,0.5,2437.2,2437.1,22.44977892]
[1750440059228,0.45,2437.7,2437.2,10.0]
[1750440059426,0.45,2437.8,2437.2,10.0]
[1750440059727,0.17731084,2437.7,2437.6,0.0568]
[1750440060103,0.0591,2440.1,2437.6,0.0568]
[1750440060104,0.45,2438.9,2437.6,20.7148]
[1750440060297,0.45,2439.4,2438.5,10.0568]
[1750440060494,0.8137,2440.2,2436.7,11.5235]
[1750440060495,30.0,2439.3,2436.7,11.5235]
[1750440060700,30.0,2438.7,2436.9,12.41914162]
[1750440060995,0.8137,2440.2,2438.2,12.41914162]
[1750440061222,0.8137,2440.2,2438.6,12.41914162]
[1750440061223,0.4,2439.9,2438.6,12.41914162]
[1750440061535,0.4,2438.8,2438.2,10.0]
[1750440061724,0.4,2438.3,2438.2,13.37019416]
[1750440061894,0.4,2439.8,2438.3,0.0568]
[1750440062094,0.4,2440.0,2438.3,0.0568]
[1750440062321,0.4,2440.0,2438.6,12.40345264]
[1750440062542,0.8255,2441.1,2438.2,13.31339416]
[1750440062543,0.4,2439.3,2438.7,1.29714526]
[1750440062769,0.4,2440.0,2438.7,0.0568]
[1750440062892,0.4,2440.4,2439.1,10.0568]
[1750440063207,0.4,2439.3,2438.7,0.784]
[1750440063407,0.4,2439.1,2438.7,0.784]
[1750440063736,0.35,2439.8,2438.8,0.0568]
[1750440063906,0.35,2440.3,2438.8,0.0568]
[1750440064095,0.35,2440.0,2439.2,0.0568]
[1750440064299,0.35,2439.7,2438.9,0.0568]
[1750440064595,0.3,2440.3,2438.8,0.0568]
[1750440064931,23.06711851,2442.7,2437.4,0.0568]
[1750440064932,0.3,2439.3,2437.4,0.0568]
[1750440065132,0.3,2440.1,2437.9,12.42079984]
[1750440065338,0.3,2438.3,2438.1,0.7682]
[1750440065544,0.25,2438.7,2438.2,0.0568]
[1750440065836,0.53,2440.1,2438.2,0.0568]
[1750440065837,0.25,2438.3,2438.2,0.0568]
[1750440066130,0.25,2438.5,2438.2,0.0568]
[1750440066318,0.53,2440.1,2438.2,0.0568]
[1750440066319,0.25,2439.1,2438.3,0.0568]
[1750440066548,0.2083,2439.4,2438.7,12.40269786]
[1750440066745,0.1008,2439.0,2438.8,10.0]
[1750440066912,0.1008,2439.0,2438.7,22.45949786]
[1750440066913,0.0617,2441.5,2438.9,2.987844]
[1750440067229,30.0,2441.4,2438.9,0.55]
[1750440067433,30.0,2440.7,2438.3,1.1485]
[1750440067597,30.0,2440.7,2438.4,2.42111979]
[1750440067801,0.0617,2440.8,2440.0,0.05]
[1750440068103,30.0,2440.5,2440.0,0.0083]
[1750440068303,0.0616,2440.4,2438.6,0.05]
[1750440068523,30.0,2440.3,2438.6,0.05]
[1750440068812,0.0616,2441.3,2439.2,0.05]
[1750440069136,0.0616,2441.3,2438.6,10.66]
[1750440069137,0.0616,2441.6,2439.1,0.05]
[1750440069300,30.0,2441.1,2438.8,0.55]
[1750440069511,30.0,2441.7,2440.2,0.05]
[1750440069701,0.0616,2441.8,2440.7,0.55]
[1750440069897,30.0,2442.6,2440.7,0.55]
[1750440070097,30.0,2442.6,2440.5,0.1]
[1750440070306,0.0616,2443.3,2441.9,0.05]
[1750440070508,0.0616,2444.0,2442.0,12.42106837]
[1750440070703,0.0616,2444.0,2442.3,0.55]
[1750440071009,10.0,2445.4,2442.1,11.24210684]
[1750440071010,30.0,2444.8,2443.3,0.05]
[1750440071205,30.0,2445.4,2443.6,10.0]
[1750440071405,30.0,2445.4,2442.6,10.658]
[1750440071406,4.08986797,2445.1,2442.6,10.658]
[1750440071619,0.8088,2445.5,2442.3,15.085]
[1750440071620,0.45,2444.5,2442.7,0.55]
[1750440071841,30.0,2444.7,2442.6,0.05]
[1750440072030,30.0,2444.7,2442.7,0.55]
[1750440072220,30.0,2444.7,2442.7,0.6]
[1750440072550,0.0616,2444.8,2443.1,0.05]
[1750440072760,0.0616,2444.6,2442.1,0.05]
[1750440073064,30.0,2444.5,2442.8,0.55]
[1750440073352,30.0,2444.1,2442.6,0.05]
[1750440073557,0.0616,2444.2,2442.8,0.05]
[1750440073719,30.0,2444.1,2442.3,0.55]
[1750440073919,0.0616,2444.2,2442.8,0.05]
[1750440074145,0.0616,2444.2,2442.1,0.55]
[1750440074146,0.0616,2444.2,2442.9,0.05]
[1750440074359,0.0616,2445.2,2443.3,0.6]
[1750440074504,0.0616,2445.2,2442.0,0.7736]
[1750440074505,30.45,2445.1,2442.9,0.05]
[1750440074712,4.09145982,2444.2,2442.3,0.55]
[1750440074942,30.0,2444.4,2442.6,0.55]
[1750440075254,40.0,2443.9,2442.0,0.7736]
[1750440075418,30.0,2443.9,2442.3,0.05]
[1750440075619,40.0,2443.7,2442.0,0.8236]
[1750440075810,0.0616,2443.8,2442.3,0.05]
[1750440076009,0.0616,2443.8,2442.0,0.8236]
[1750440076232,0.0616,2443.8,2442.5,0.55]
[1750440076646,0.0616,2443.8,2442.2,0.05]
[1750440076811,0.0616,2443.8,2442.0,0.7736]
[1750440077012,10.0,2443.6,2442.0,0.7736]
[1750440077220,30.0,2443.4,2442.0,0.7736]
[1750440077545,30.0,2443.4,2442.2,0.05]
[1750440077711,0.0616,2443.5,2442.3,0.55]
[1750440077910,0.0616,2443.5,2442.0,0.7736]
[1750440077911,4.09281618,2443.4,2442.0,0.7736]
[1750440078120,0.0616,2443.5,2442.0,0.7736]
[1750440078353,0.0616,2443.5,2441.7,0.05]
[1750440078354,30.0616,2443.3,2441.7,0.05]
[1750440078557,30.0616,2443.3,2440.8,0.8132]
[1750440078558,0.0616,2443.3,2441.4,0.05]
[1750440078911,40.0,2443.0,2441.0,0.05]
[1750440079257,30.0,2443.0,2441.2,0.05]
[1750440079412,30.0,2443.0,2441.6,0.05]
[1750440079614,0.0616,2443.1,2442.3,0.05]
[1750440079846,0.0616,2443.1,2441.2,0.6]
[1750440079847,0.0616,2444.2,2441.8,0.05]
[1750440080161,40.0,2443.2,2441.5,0.05]
[1750440080401,40.0,2443.2,2440.8,0.8132]
[1750440080402,40.0,2442.9,2441.2,0.05]
[1750440080688,0.55,2443.8,2441.2,0.05]
[1750440080689,30.0616,2443.9,2442.4,0.05]
[1750440080853,30.0,2443.6,2443.1,4.09311573]
[1750440081054,40.0,2443.4,2443.3,4.09282527]
[1750440081254,40.0,2443.4,2441.7,4.09550722]
[1750440081255,30.0,2443.2,2441.8,4.0953395]
[1750440081466,10.0,2443.8,2441.8,4.0953395]
[1750440081467,30.0616,2443.1,2442.0,4.09486431]
[1750440081668,10.0,2443.8,2442.0,4.09500409]
[1750440081669,0.0616,2442.9,2442.0,4.09500409]
[1750440081868,30.0616,2442.9,2441.4,0.05]
[1750440082067,30.0616,2442.7,2441.5,0.05]
[1750440082255,30.0616,2442.7,2442.6,4.09399819]
[1750440082456,0.0616,2442.7,2442.6,4.09399819]
[1750440082680,0.0616,2442.7,2441.6,0.55]
[1750440082882,10.0616,2443.1,2441.6,0.34189982]
[1750440083082,30.0,2443.0,2441.7,4.43739304]
[1750440083385,10.0,2443.3,2441.7,0.34188582]
[1750440083386,40.0616,2442.8,2441.7,0.34188582]
[1750440083592,0.0616,2442.7,2442.6,4.09385276]
[1750440083807,30.0,2442.6,2441.2,0.05]
[1750440084102,40.0,2443.4,2442.4,4.09429105]
[1750440084276,13.23636837,2444.5,2441.3,0.55]
[1750440084277,30.0616,2443.1,2443.0,4.09332787]
[1750440084580,30.0616,2443.1,2441.8,0.55]
[1750440084581,30.0,2443.0,2442.9,4.09337161]
[1750440084782,30.0,2442.9,2441.0,0.05]
[1750440084983,30.0,2442.9,2442.0,4.09495616]
[1750440085182,0.0616,2442.9,2442.8,4.093663]
[1750440085437,30.0616,2443.6,2443.5,4.09249028]
[1750440085565,14.74273286,2444.6,2443.4,4.09265777]
[1750440085566,0.0616,2443.5,2443.4,4.09265777]
[1750440085766,30.0,2443.4,2442.4,0.76]
[1750440085969,30.0616,2443.4,2443.3,4.09282527]
[1750440086298,0.8153,2444.5,2441.6,0.8087]
[1750440086299,30.0,2443.3,2441.6,0.8087]
[1750440086594,40.0,2442.9,2442.5,4.09401069]
[1750440086759,40.0,2442.9,2441.6,4.90428854]
[1750440086760,0.0616,2442.9,2442.8,4.093663]
[1750440087188,0.0616,2442.9,2441.8,4.09528596]
[1750440087189,30.0616,2442.9,2441.8,4.09528596]
[1750440087396,0.01513393,2442.8,2442.7,4.09383059]
[1750440087572,0.01513393,2442.8,2442.7,14.14383059]
[1750440087781,0.01513393,2442.8,2442.7,6.51761085]
[1750440087964,0.0616,2442.7,2441.6,0.8087]
[1750440088296,0.0616,2442.1,2442.0,4.09500409]
[1750440088501,10.0616,2441.9,2440.2,0.05]
[1750440088648,10.0616,2441.9,2440.0,0.05]
[1750440088649,40.0,2441.6,2440.8,4.09688529]
[1750440089015,4.09634674,2441.2,2440.0,0.05]
[1750440089297,15.079,2441.6,2438.7,4.10053765]
[1750440089298,14.16016642,2439.9,2438.7,4.10053765]
[1750440089460,14.16016642,2439.9,2439.4,4.09927248]
[1750440089461,30.0,2439.8,2439.4,4.09927248]
[1750440089662,30.0,2439.8,2438.0,0.7599]
[1750440089663,7.71853837,2439.9,2439.8,4.09869661]
[1750440089867,7.71853837,2439.9,2439.5,4.09913728]
[1750440089868,7.71853837,2440.7,2439.5,0.05]
[1750440090065,40.0616,2441.3,2440.0,4.09825774]
[1750440090265,40.0616,2441.3,2439.5,0.05]
[1750440090266,0.0616,2441.2,2439.9,4.09852862]
[1750440090491,7.71853837,2441.4,2441.0,4.09668168]
[1750440090694,12.61512593,2442.0,2440.6,4.0973531]
[1750440090695,0.0616,2441.7,2440.6,4.0973531]
[1750440090855,10.0,2441.8,2439.9,4.50830476]
[1750440090856,30.0,2441.6,2439.9,4.50830476]
[1750440091051,30.0,2441.4,2439.9,0.45985286]
[1750440091249,30.0,2441.4,2440.4,4.0976889]
[1750440091466,0.0616,2441.3,2439.7,0.05]
[1750440091668,30.0,2441.0,2439.7,0.05]
[1750440091868,0.0616,2440.9,2439.9,4.09852862]
[1750440092160,30.0,2441.5,2439.9,4.09852862]
[1750440092360,7.78013837,2441.6,2440.3,0.8091]
[1750440092562,12.49492422,2442.7,2440.3,0.7591]
[1750440092563,0.0616,2441.5,2440.3,0.7591]
[1750440092766,0.0616,2441.5,2440.6,0.05]
[1750440092953,0.0616,2441.4,2441.3,4.09617826]
[1750440093156,0.0616,2441.4,2440.6,0.05]
[1750440093157,30.0,2441.3,2440.3,0.8091]
[1750440093355,4.09584271,2441.5,2440.3,0.8091]
[1750440093607,30.0,2441.5,2441.4,4.09601048]
[1750440093786,30.0,2441.5,2440.6,0.05]
[1750440093787,0.0616,2441.7,2440.6,0.05]
[1750440093956,30.0616,2442.1,2441.6,4.09567496]
[1750440094153,7.71853837,2442.4,2441.6,4.09567496]
[1750440094154,0.0616,2442.0,2441.9,4.09517179]
[1750440094356,7.78013837,2442.4,2442.3,4.09450108]
[1750440094554,7.78013837,2442.4,2442.0,4.09493689]
[1750440094555,0.0616,2442.9,2442.8,4.093663]
[1750440094755,0.0616,2442.7,2441.3,0.05]
[1750440094954,30.0,2442.8,2440.9,0.55]
[1750440094955,0.0616,2441.5,2440.9,0.55]
[1750440095159,0.0616,2441.5,2440.0,0.05]
[1750440095392,0.0616,2441.5,2439.8,0.798]
[1750440095393,30.0,2441.2,2440.2,0.05]
[1750440095564,7.71853837,2441.6,2440.8,4.09701737]
[1750440095891,10.0,2442.1,2440.7,0.05]
[1750440096098,30.0,2441.8,2440.5,0.05]
[1750440096297,30.0,2441.8,2440.8,4.09701737]
[1750440096595,0.0616,2441.9,2440.8,4.09701737]
[1750440096596,40.0,2442.1,2441.1,0.05]
[1750440096798,40.0,2442.1,2440.0,4.09834643]
[1750440096799,7.71853837,2442.6,2442.5,4.09416581]
[1750440096996,0.0616,2443.1,2442.0,0.05]
[1750440096997,10.0,2443.0,2442.0,0.05]
[1750440097163,0.0616,2443.1,2443.0,4.09332787]
[1750440097363,7.71853837,2443.2,2443.0,4.09332787]
[1750440097570,7.71853837,2443.2,2443.1,4.09316032]
[1750440098093,30.0,2443.5,2442.4,0.05]
[1750440098291,0.0616,2443.6,2442.4,0.05]
[1750440098292,40.0,2443.3,2443.1,4.09301678]
[1750440098593,40.0,2443.4,2442.4,0.05]
[1750440098796,30.0589,2443.4,2443.3,4.09282527]
[1750440098998,30.0589,2443.4,2442.2,0.55]
[1750440098999,30.0589,2443.8,2442.4,4.09433344]
[1750440099159,30.0,2443.8,2443.0,4.14327046]
[1750440099359,25.081,2444.3,2439.8,0.7961]
[1750440099360,30.0,2443.7,2439.8,0.7961]
[1750440099563,30.0,2443.7,2436.4,2.08569728]
[1750440099564,40.0,2441.8,2439.1,0.7914]
[1750440099760,12.42106837,2440.9,2439.1,0.7914]
[1750440100063,12.42106837,2440.9,2437.5,0.005]
[1750440100064,30.0,2440.4,2438.3,0.0565]
[1750440100262,0.0589,2440.9,2438.2,0.0565]
[1750440100465,30.0,2440.9,2438.3,0.0565]
[1750440100667,30.0,2440.9,2438.5,0.7914]
[1750440100887,10.0,2441.6,2439.7,4.09886461]
[1750440101088,30.0,2441.9,2440.3,0.0565]
[1750440101287,30.0,2441.9,2441.5,4.09577544]
[1750440101475,30.0,2441.9,2440.5,0.55]
[1750440101476,30.0,2441.6,2439.8,0.48902646]
[1750440101680,30.0,2441.5,2439.8,0.48902646]
[1750440101880,30.0,2441.6,2441.5,4.09584271]
[1750440102077,30.0,2441.9,2441.5,4.09584271]
[1750440102279,0.0589,2441.8,2441.7,4.09550722]
[1750440102491,40.0,2442.3,2441.9,4.09504644]
[1750440102798,30.0,2442.6,2441.5,4.09569957]
[1750440103004,30.0,2442.6,2441.1,4.09651386]
[1750440103324,0.7832,2442.7,2441.0,0.55]
[1750440103325,30.0,2442.4,2441.0,0.55]
[1750440103614,30.0,2442.4,2441.7,4.09537601]
[1750440103764,0.0589,2442.5,2441.8,4.09527599]
[1750440103964,30.0,2442.3,2441.9,4.0951692]
[1750440104165,30.0,2442.3,2441.1,4.09651386]
[1750440104166,30.0,2442.3,2441.2,4.09634605]
[1750440104365,30.0,2442.3,2441.1,4.09651386]
[1750440104366,30.0,2442.3,2441.3,0.55]
[1750440104564,30.0,2442.3,2441.5,4.6457659]
[1750440104766,30.0,2442.6,2441.5,0.55]
[1750440104966,30.0,2442.9,2442.3,4.09447246]
[1750440105199,30.0,2442.9,2442.2,4.09460594]
[1750440105498,30.0,2442.9,2441.5,4.09584271]
[1750440105798,30.0,2442.9,2441.7,4.64546541]
[1750440106002,30.0,2442.9,2441.1,14.09637229]
[1750440106003,0.0589,2442.8,2442.0,4.09488644]
[1750440106201,40.0,2442.7,2441.5,4.09573209]
[1750440106506,40.0,2442.7,2441.2,4.09634605]
[1750440106507,0.0589,2441.3,2441.2,4.09634605]
[1750440106903,0.02469793,2441.5,2441.4,4.09601048]
[1750440107104,0.02469793,2441.5,2441.4,15.32486216]
[1750440107289,0.02469793,2441.5,2441.4,16.72756216]
[1750440108413,0.02469793,2441.5,2441.4,15.49871048]
[1750440111283,0.07653433,2441.5,2441.4,15.49871048]
[1750440111490,0.07653433,2441.5,2441.4,30.57971048]
[1750440111694,0.0589,2443.2,2443.1,4.09316032]
[1750440111920,7.71853837,2443.6,2443.5,4.09249028]
[1750440111921,7.77743837,2443.6,2443.5,4.09249028]
[1750440112097,37.77743837,2443.6,2443.5,4.09249028]
[1750440112417,30.0,2443.8,2442.6,4.09399819]
[1750440112624,40.0589,2443.6,2443.5,4.09246658]
[1750440112821,30.0589,2443.6,2443.5,4.09246658]
[1750440113186,0.0589,2443.6,2443.5,4.09246658]
[1750440113410,30.8644,2443.9,2443.8,3.98169596]
[1750440113597,20.21346259,2444.4,2443.2,4.09292014]
[1750440113598,10.0,2444.2,2443.2,4.09292014]
[1750440113901,30.0589,2444.2,2444.1,4.09148561]
[1750440114101,0.0589,2444.2,2444.1,4.09148561]
[1750440115602,30.0589,2444.1,2441.7,0.7962]
[1750440115791,0.0589,2443.6,2441.8,0.39837181]
[1750440115990,10.0589,2443.5,2443.4,4.09265777]
[1750440116313,0.0589,2443.5,2443.4,4.09265777]
[1750440116512,0.0589,2443.5,2442.0,4.09500409]
[1750440116513,30.0,2443.4,2443.2,4.09299279]
[1750440116823,30.07118786,2443.4,2443.3,4.09282527]
[1750440117223,30.0589,2443.3,2443.0,4.0932961]
[1750440117426,30.0589,2443.3,2443.2,4.09299279]
[1750440117427,30.0,2443.3,2443.2,4.09299279]
[1750440117725,0.07118786,2443.4,2443.3,4.09282527]
[1750440117926,0.01228786,2443.4,2443.3,4.09282527]
[1750440118239,0.07118786,2443.4,2443.3,4.09282527]
[1750440118443,30.07118786,2443.4,2443.3,4.09282527]
[1750440118657,30.07118786,2443.4,2443.0,4.09331596]
[1750440118658,0.41902803,2444.7,2443.0,0.7645]
[1750440118954,0.0589,2444.3,2444.2,4.09130823]
[1750440119092,30.0,2444.2,2442.7,4.09383059]
[1750440119299,30.0,2444.0,2443.9,4.09182045]
[1750440119608,30.0,2444.4,2444.3,4.09115084]
[1750440119797,0.0589,2444.7,2444.3,4.09115084]
[1750440119995,30.0589,2444.9,2444.8,4.09020931]
[1750440120194,1.1337535,2445.1,2443.5,4.09249028]
[1750440120195,0.0589,2444.7,2443.5,4.09249028]
[1750440120525,0.0589,2444.7,2442.6,4.0939765]
[1750440120526,0.0589,2443.8,2442.6,4.09399819]
[1750440120719,0.0589,2443.8,2441.7,0.0565]
[1750440120720,0.0589,2443.4,2441.7,0.0565]
[1750440120894,29.94913318,2443.2,2442.2,4.09466874]
[1750440121093,30.0,2441.7,2440.8,4.09690403]
[1750440121292,30.0,2441.8,2440.9,0.34199787]
[1750440121540,0.8047,2442.4,2440.9,0.34199787]
[1750440121541,0.8047,2442.4,2442.3,4.09450108]
[1750440121700,0.55,2442.9,2441.6,0.0565]
[1750440121907,0.8047,2443.0,2442.9,4.09349543]
[1750440122159,12.42106837,2444.9,2442.3,4.09447445]
[1750440122160,0.8047,2444.4,2442.3,10.0565]
[1750440122441,30.0,2444.3,2442.6,0.0565]
[1750440122593,10.652,2445.6,2442.6,0.0565]
[1750440122594,30.0,2445.0,2444.9,4.09014683]
[1750440122793,1.1337535,2445.1,2444.5,4.09077654]
[1750440122794,40.0,2444.8,2444.5,4.09077654]
[1750440123001,1.1337535,2445.1,2445.0,4.08997955]
[1750440123203,0.3290535,2445.1,2445.0,4.08997955]
[1750440123408,30.0,2445.0,2444.0,0.55]
[1750440123591,0.3290535,2445.1,2445.0,4.08997955]
[1750440123816,0.3290535,2445.1,2444.5,4.09076473]
[1750440123817,0.3290535,2445.1,2443.9,4.09174429]
[1750440124003,0.0589,2444.9,2444.2,4.09121515]
[1750440124208,30.0,2444.3,2444.2,4.09131822]
[1750440124408,30.0,2444.3,2443.6,4.09217409]
[1750440124612,40.0,2444.1,2442.9,4.09349543]